bitfinex/quotes_SOLUSD_20250520
["timestamp","ask_amount","ask_price","bid_price","bid_amount"]
[1747701401927,20.84283234,167.93,167.89,0.73562325]
[1747701402945,5.95486214,167.93,167.9,18.64964886]
[1747701403329,14.88490062,167.96,167.9,18.64964886]
[1747701403527,14.88490062,167.96,167.91,0.28432314]
[1747701403963,14.88490062,167.96,167.9,18.64964886]
[1747701404260,34.82929381,167.96,167.9,18.64964886]
[1747701404550,19.94439319,167.94,167.89,18.59562325]
[1747701405160,14.88490062,167.96,167.9,18.64964886]
[1747701405337,20.83869914,167.96,167.9,18.64964886]
[1747701405534,40.78309233,167.96,167.9,18.64964886]
[1747701406158,20.83869914,167.96,167.9,18.64964886]
[1747701407447,40.78309233,167.96,167.9,18.64964886]
[1747701407642,19.94439319,167.95,167.9,18.64964886]
[1747701407832,19.94439319,167.94,167.89,0.73562325]
[1747701408540,19.94439319,167.93,167.89,0.73562325]
[1747701409151,19.94439319,167.94,167.89,0.73562325]
[1747701409344,20.83869914,167.96,167.9,18.64964886]
[1747701409541,19.94439319,167.95,167.9,18.64964886]
[1747701409742,19.94439319,167.94,167.9,18.64964886]
[1747701410051,19.94439319,167.93,167.89,0.73562325]
[1747701410254,19.94439319,167.9,167.89,0.73562325]
[1747701410753,19.94439319,167.92,167.89,0.73562325]
[1747701410970,19.94439319,167.93,167.89,0.73562325]
[1747701411644,25.89960995,167.92,167.89,0.73562325]
[1747701411850,19.94439319,167.91,167.89,0.73562325]
[1747701412159,5.95521676,167.92,167.89,0.73562325]
[1747701413065,5.95521676,167.92,167.9,18.64964886]
[1747701413671,5.95415302,167.95,167.91,0.28432314]
[1747701415070,5.95415302,167.95,167.92,18.64964886]
[1747701415449,14.88390271,167.97,167.92,18.64964886]
[1747701415651,5.95308965,167.98,167.93,0.28432314]
[1747701416348,20.83581378,167.98,167.93,0.28432314]
[1747701416865,5.95308965,167.98,167.93,0.28432314]
[1747701417066,5.95308965,167.98,167.96,18.933972]
[1747701417277,14.88017022,168.01,167.96,18.933972]
[1747701417451,5.95167241,168.02,167.96,18.933972]
[1747701418166,40.77524664,168.02,167.96,18.64964886]
[1747701418356,19.94439319,168.01,167.96,18.64964886]
[1747701418870,40.77524664,168.02,167.96,18.64964886]
[1747701419465,20.83085345,168.02,167.96,18.64964886]
[1747701419778,19.94439319,167.99,167.95,17.86]
[1747701419981,19.94439319,167.96,167.89,0.73562325]
[1747701420150,19.94439319,167.95,167.9,18.64964886]
[1747701420470,19.94439319,167.93,167.89,0.73562325]
[1747701420943,19.94439319,167.91,167.89,0.73562325]
[1747701421345,6.4097,167.94,167.9,18.64964886]
[1747701421570,5.95486214,167.93,167.9,18.64964886]
[1747701422079,5.95486214,167.93,167.89,0.73562325]
[1747701422080,40.78641069,167.93,167.89,0.73562325]
[1747701422370,20.8420175,167.93,167.9,18.64964886]
[1747701422973,5.95486214,167.93,167.9,18.64964886]
[1747701423554,34.83125419,167.94,167.9,18.64964886]
[1747701423767,19.94439319,167.93,167.89,0.73562325]
[1747701423964,14.886861,167.94,167.89,0.73562325]
[1747701424172,19.94439319,167.92,167.89,0.73562325]
[1747701424383,19.94439319,167.93,167.89,0.73562325]
[1747701424591,34.83125419,167.94,167.89,0.73562325]
[1747701425372,14.886861,167.94,167.89,0.73562325]
[1747701425566,34.83125419,167.94,167.89,0.73562325]
[1747701425762,19.94439319,167.93,167.89,0.73562325]
[1747701426371,40.78576175,167.94,167.89,0.73562325]
[1747701426876,20.84136856,167.94,167.9,18.64964886]
[1747701430394,5.95450756,167.94,167.9,36.50964886]
[1747701431398,20.84077646,167.94,167.89,0.73562325]
[1747701431560,40.78516965,167.94,167.89,0.73562325]
[1747701431890,19.94439319,167.92,167.89,0.73562325]
[1747701432671,19.94439319,167.91,167.89,0.73562325]
[1747701433478,19.94439319,167.9,167.89,0.73562325]
[1747701433880,25.90031933,167.9,167.89,0.73562325]
[1747701434067,5.95592614,167.9,167.89,0.73562325]
[1747701435703,5.95486214,167.93,167.91,0.28432314]
[1747701435999,20.83761863,167.97,167.91,0.28432314]
[1747701436167,5.95344406,167.97,167.91,18.933972]
[1747701436985,5.95344406,167.97,167.91,18.64964886]
[1747701437169,20.83705422,167.97,167.91,18.64964886]
[1747701437885,40.78144741,167.97,167.91,18.64964886]
[1747701438062,19.94439319,167.96,167.9,18.64964886]
[1747701438466,40.78144741,167.97,167.9,18.64964886]
[1747701438791,20.83705422,167.97,167.91,0.28432314]
[1747701438982,5.95344406,167.97,167.93,0.28432314]
[1747701439817,5.95273528,167.99,167.96,18.64964886]
[1747701439980,14.88114469,168.0,167.96,18.64964886]
[1747701441893,20.83352564,168.0,167.96,18.64964886]
[1747701442813,5.95238095,168.0,167.97,0.28432314]
[1747701443789,5.95238095,168.0,167.96,18.64964886]
[1747701444095,5.95238095,168.0,167.94,18.933972]
[1747701444597,20.83333333,168.0,167.94,18.933972]
[1747701445587,20.83333333,168.0,167.95,18.64964886]
[1747701447175,20.83333333,168.0,167.93,18.14432314]
[1747701447570,19.94439319,167.99,167.91,17.86]
[1747701447786,70.53963128,168.0,167.92,18.64964886]
[1747701449190,19.94439319,167.98,167.92,18.64964886]
[1747701450495,5.95344406,167.97,167.92,18.64964886]
[1747701450701,20.83705422,167.97,167.92,18.64964886]
[1747701452594,14.88361016,167.97,167.92,18.64964886]
[1747701453395,14.88361016,167.97,167.91,17.86]
[1747701453595,19.94439319,167.95,167.89,18.59562325]
[1747701453896,19.94439319,167.95,167.89,0.73562325]
[1747701454406,19.94439319,167.96,167.9,18.64964886]
[1747701454596,47.39644741,167.97,167.9,18.64964886]
[1747701454901,27.45205422,167.97,167.9,18.64964886]
[1747701455094,19.94439319,167.96,167.89,0.73562325]
[1747701455294,19.94439319,167.94,167.89,0.73562325]
[1747701455504,19.94439319,167.93,167.89,0.73562325]
[1747701455705,19.94439319,167.92,167.89,0.73562325]
[1747701456278,45.94439319,167.94,167.89,0.73562325]
[1747701456483,26.0,167.94,167.89,0.73562325]
[1747701456779,20.8420175,167.93,167.89,0.73562325]
[1747701457387,40.78641069,167.93,167.89,0.73562325]
[1747701457782,19.94439319,167.92,167.89,0.73562325]
[1747701457995,40.78641069,167.93,167.89,0.73562325]
[1747701458902,19.94439319,167.92,167.89,0.73562325]
[1747701459105,19.94439319,167.9,167.89,0.73562325]
[1747701459297,19.94439319,167.9,167.83,18.64964886]
[1747701459607,19.94439319,167.89,167.83,18.64964886]
[1747701460201,19.94439319,167.89,167.8,26.14216157]
[1747701460502,19.94439319,167.86,167.8,18.64964886]
[1747701460685,19.94439319,167.87,167.8,18.64964886]
[1747701460892,20.84946684,167.87,167.8,18.64964886]
[1747701461097,40.79386003,167.87,167.8,18.64964886]
[1747701461389,19.94439319,167.86,167.8,18.64964886]
[1747701462506,19.94439319,167.86,167.78,17.86]
[1747701463033,20.85195113,167.85,167.78,17.86]
[1747701464710,19.94439319,167.84,167.78,17.86]
[1747701464892,19.94439319,167.84,167.77,18.64964886]
[1747701465089,20.85443603,167.83,167.77,18.64964886]
[1747701465296,40.79882922,167.83,167.75,17.86]
[1747701465503,19.94439319,167.82,167.74,17.86]
[1747701465702,19.94439319,167.82,167.73,44.64964886]
[1747701465901,19.94439319,167.82,167.74,0.28432314]
[1747701466296,20.85443603,167.83,167.74,0.28432314]
[1747701466503,20.85443603,167.83,167.75,3.36799333]
[1747701466703,20.85443603,167.83,167.77,0.28432314]
[1747701467212,40.79882922,167.83,167.76,18.64964886]
[1747701467385,20.85443603,167.83,167.76,18.64964886]
[1747701467709,20.85443603,167.83,167.76,18.79181043]
[1747701467906,40.79882922,167.83,167.76,18.79181043]
[1747701469183,20.85443603,167.83,167.76,18.79181043]
[1747701469711,20.85443603,167.83,167.77,0.14216157]
[1747701469893,20.85443603,167.83,167.76,18.79181043]
[1747701469894,40.79882922,167.83,167.76,18.79181043]
[1747701470310,40.79882922,167.83,167.76,18.64964886]
[1747701470493,19.94439319,167.8,167.74,18.64964886]
[1747701470804,20.85443603,167.83,167.75,0.28432314]
[1747701471320,40.79882922,167.83,167.75,0.28432314]
[1747701472211,20.85443603,167.83,167.75,0.28432314]
[1747701472804,20.85443603,167.83,167.77,0.28432314]
[1747701473013,20.85443603,167.83,167.76,0.28432314]
[1747701474918,5.95841029,167.83,167.75,6.24530612]
[1747701475115,5.95841029,167.83,167.75,0.28432314]
[1747701475303,20.85443603,167.83,167.75,0.28432314]
[1747701475814,20.85443603,167.83,167.75,6.24539109]
[1747701476797,20.85443603,167.83,167.75,0.28432314]
[1747701477502,40.79882922,167.83,167.75,0.28432314]
[1747701477800,20.85443603,167.83,167.75,0.28432314]
[1747701478003,20.85443603,167.83,167.75,6.24551185]
[1747701478319,5.95841029,167.83,167.78,0.28432314]
[1747701479713,26.0,167.85,167.78,0.28432314]
[1747701480518,26.0,167.85,167.8,18.933972]
[1747701481708,5.95805529,167.84,167.8,18.933972]
[1747701482214,5.9573454,167.86,167.8,18.933972]
[1747701483227,20.85070891,167.86,167.8,18.933972]
[1747701483432,20.85070891,167.86,167.8,17.86]
[1747701483937,33.34055839,167.86,167.79,18.64964886]
[1747701484230,20.85070891,167.86,167.79,18.64964886]
[1747701484543,38.48984948,167.85,167.76,18.933972]
[1747701484718,12.48984948,167.84,167.77,17.86]
[1747701485109,26.0,167.85,167.73,1.5859]
[1747701485110,12.48984948,167.82,167.73,1.5859]
[1747701485330,12.48984948,167.82,167.74,36.50964886]
[1747701485825,20.85692151,167.81,167.74,36.50964886]
[1747701486003,5.95912043,167.81,167.75,0.28432314]
[1747701486202,44.44896991,167.81,167.72,0.73636887]
[1747701486406,26.0,167.78,167.72,0.73636887]
[1747701486635,12.48984948,167.76,167.72,0.73636887]
[1747701486811,38.48984948,167.77,167.72,0.73636887]
[1747701487836,20.8631378,167.76,167.72,0.73636887]
[1747701489451,20.8631378,167.76,167.73,18.64964886]
[1747701489740,5.96089651,167.76,167.73,18.64964886]
[1747701489909,20.85993279,167.79,167.74,0.28432314]
[1747701490540,20.85993279,167.79,167.73,18.64964886]
[1747701491108,20.85993279,167.79,167.74,0.28432314]
[1747701491308,5.95983074,167.79,167.76,18.64964886]
[1747701491932,19.98754683,167.81,167.76,18.64964886]
[1747701492114,19.98754683,167.81,167.75,17.88]
[1747701492314,50.64985834,167.82,167.73,18.64964886]
[1747701492315,19.98754683,167.78,167.73,18.64964886]
[1747701492611,136.2,167.8,167.73,18.64964886]
[1747701493026,19.98754683,167.79,167.73,18.64964886]
[1747701493232,136.2,167.8,167.73,18.64964886]
[1747701493736,156.18754683,167.8,167.73,18.64964886]
[1747701493941,40.84695442,167.79,167.73,18.64964886]
[1747701494138,20.85940759,167.79,167.73,18.64964886]
[1747701494335,20.85940759,167.79,167.74,0.28432314]
[1747701495037,5.95983074,167.79,167.74,0.28432314]
[1747701496028,20.85605412,167.82,167.74,0.28432314]
[1747701496839,5.95770032,167.85,167.77,18.933972]
[1747701497027,5.95770032,167.85,167.79,18.933972]
[1747701497231,20.85195113,167.85,167.79,18.64964886]
[1747701497441,20.85195113,167.85,167.8,0.28432314]
[1747701497641,5.95770032,167.85,167.8,0.28432314]
[1747701498151,19.98754683,167.86,167.79,18.64964886]
[1747701498540,40.83701367,167.87,167.79,18.64964886]
[1747701499638,19.98754683,167.86,167.79,18.64964886]
[1747701499863,19.98754683,167.85,167.79,18.64964886]
[1747701500137,5.95770032,167.85,167.79,18.64964886]
[1747701500523,40.83949796,167.85,167.79,18.64964886]
[1747701500719,20.85195113,167.85,167.78,0.14216157]
[1747701500931,20.85195113,167.85,167.78,18.16432314]
[1747701502349,40.83949796,167.85,167.78,53.90432314]
[1747701502536,40.83949796,167.85,167.79,18.64964886]
[1747701502735,20.85195113,167.85,167.79,18.64964886]
[1747701503251,5.95770032,167.85,167.8,0.28432314]
[1747701503434,5.95699052,167.87,167.83,18.933972]
[1747701504240,40.83328833,167.9,167.83,18.933972]
[1747701504435,19.98754683,167.89,167.83,18.64964886]
[1747701504659,19.98754683,167.88,167.83,18.64964886]
[1747701505152,19.98754683,167.87,167.82,18.64964886]
[1747701505835,19.98754683,167.89,167.82,18.64964886]
[1747701506030,20.8457415,167.9,167.83,0.28432314]
[1747701507933,20.8457415,167.9,167.85,0.28432314]
[1747701509045,5.95592614,167.9,167.85,0.28432314]
[1747701509443,1.5538,167.96,167.9,18.64964886]
[1747701509444,5.95450756,167.94,167.9,18.64964886]
[1747701509650,5.95450756,167.94,167.91,0.28432314]
[1747701509858,5.95450756,167.94,167.92,17.86]
[1747701510043,5.95450756,167.94,167.93,18.64964886]
[1747701510457,14.88398018,167.97,167.93,18.933972]
[1747701511252,5.95273528,167.99,167.94,0.28432314]
[1747701511570,5.95273528,167.99,167.97,18.933972]
[1747701511772,5.95167241,168.02,167.97,18.933972]
[1747701511960,5.95167241,168.02,168.0,0.28432314]
[1747701512137,5.95060993,168.05,168.0,0.28432314]
[1747701513153,41.31043044,168.09,168.0,0.28432314]
[1747701513154,5.95025586,168.06,168.0,0.28432314]
[1747701513477,19.98754683,168.01,167.92,19.4095]
[1747701513640,19.98754683,168.01,167.95,26.0]
[1747701513846,19.98754683,168.02,167.96,18.64964886]
[1747701514361,19.98754683,168.03,167.96,18.64964886]
[1747701514743,19.98754683,168.03,167.97,0.28432314]
[1747701514947,34.86407167,168.05,167.97,0.28432314]
[1747701515159,40.8146816,168.05,167.99,18.933972]
[1747701515478,20.82713477,168.05,167.99,18.933972]
[1747701515875,40.8146816,168.05,167.99,18.933972]
[1747701516170,19.98754683,168.04,167.99,18.64964886]
[1747701516375,19.98754683,168.03,167.97,0.28432314]
[1747701516538,50.58018445,168.05,167.97,0.28432314]
[1747701516737,19.98754683,168.03,167.96,44.64964886]
[1747701517342,20.83085345,168.02,167.96,44.64964886]
[1747701517747,40.81840028,168.02,167.96,44.64964886]
[1747701518150,20.83085345,168.02,167.97,0.28432314]
[1747701519061,20.83085345,168.02,168.0,18.64964886]
[1747701519264,14.87918104,168.02,168.0,18.64964886]
[1747701520170,5.95096405,168.04,168.0,18.64964886]
[1747701520344,5.95096405,168.04,168.01,0.28432314]
[1747701520544,5.95096405,168.04,168.0,18.64964886]
[1747701521046,5.95096405,168.04,168.01,0.28432314]
[1747701521254,50.57277671,168.08,168.01,0.28432314]
[1747701521655,20.82382915,168.08,168.03,18.933972]
[1747701521859,5.94954783,168.08,168.03,18.933972]
[1747701522565,5.94883997,168.1,168.07,18.933972]
[1747701522869,5.94883997,168.1,168.08,0.28432314]
[1747701523065,5.94883997,168.1,168.07,18.64964886]
[1747701523477,5.94813228,168.12,168.1,18.64964886]
[1747701525249,5.94777072,168.14,168.11,0.28432314]
[1747701525450,14.86788693,168.15,168.11,0.28432314]
[1747701526046,5.94636379,168.17,168.11,0.28432314]
[1747701526556,5.94636379,168.17,168.16,26.0]
[1747701526747,5.94459636,168.22,168.17,18.64964886]
[1747701526944,20.80608726,168.22,168.17,18.64964886]
[1747701527144,40.79363409,168.22,168.17,18.64964886]
[1747701527348,20.80608726,168.22,168.17,18.64964886]
[1747701528558,5.94459636,168.22,168.21,18.64964886]
[1747701528763,5.94282997,168.27,168.21,18.64964886]
[1747701528968,5.94282997,168.27,168.22,0.28432314]
[1747701530172,20.7999049,168.27,168.22,0.28432314]
[1747701530872,20.7999049,168.27,168.21,18.64964886]
[1747701532082,19.98754683,168.26,168.18,0.28432314]
[1747701532267,19.98754683,168.25,168.21,18.64964886]
[1747701532774,19.98754683,168.24,168.19,18.64964886]
[1747701532986,19.98754683,168.23,168.18,18.64964886]
[1747701533286,19.98754683,168.19,168.1,17.84]
[1747701533484,26.28264683,168.19,168.11,18.933972]
[1747701533856,26.28264683,168.19,168.13,18.64964886]
[1747701534072,26.28264683,168.19,168.13,44.64964886]
[1747701534381,40.79858261,168.18,168.13,44.64964886]
[1747701534559,20.81103578,168.18,168.13,44.64964886]
[1747701534981,40.79858261,168.18,168.12,18.64964886]
[1747701535279,20.81103578,168.18,168.12,18.64964886]
[1747701535986,19.98754683,168.15,168.06,222.64]
[1747701536163,20.81598667,168.14,168.07,17.84]
[1747701536361,20.81598667,168.14,168.09,0.28432314]
[1747701536563,5.94742476,168.14,168.09,0.28432314]
[1747701537256,5.94742476,168.14,168.09,0.14216157]
[1747701537453,5.94742476,168.14,168.08,44.64964886]
[1747701537765,5.94742476,168.14,168.11,18.64964886]
[1747701538190,14.8663441,168.17,168.13,18.64964886]
[1747701538684,34.85389093,168.17,168.13,18.64964886]
[1747701539352,14.8663441,168.17,168.13,18.64964886]
[1747701540366,34.85389093,168.17,168.13,18.64964886]
[1747701540781,14.8663441,168.17,168.13,18.64964886]
[1747701542593,5.94601022,168.18,168.13,18.64964886]
[1747701542799,5.94601022,168.18,168.14,0.28432314]
[1747701543886,5.94601022,168.18,168.13,18.64964886]
[1747701543887,20.81103578,168.18,168.13,18.64964886]
[1747701544094,5.944243,168.23,168.18,0.28432314]
[1747701544281,5.944243,168.23,168.21,18.64964886]
[1747701544480,6.2529,168.3,168.22,0.28432314]
[1747701544679,5.94212371,168.29,168.25,18.64964886]
[1747701544994,20.79743299,168.29,168.25,18.64964886]
[1747701545192,5.94212371,168.29,168.25,18.64964886]
[1747701545495,5.94141762,168.31,168.29,18.64964886]
[1747701546581,14.85302216,168.32,168.29,18.64964886]
[1747701546978,5.94071169,168.33,168.29,18.64964886]
[1747701547177,5.94071169,168.33,168.3,0.28432314]
[1747701547776,5.94071169,168.33,168.32,26.0]
[1747701547979,20.78663447,168.38,168.33,18.64964886]
[1747701549381,40.7741813,168.38,168.33,18.64964886]
[1747701549583,20.78663447,168.38,168.33,18.64964886]
[1747701549782,40.7741813,168.38,168.33,18.64964886]
[1747701550287,50.48137256,168.38,168.27,26.0]
[1747701550595,50.48137256,168.38,168.29,0.28432314]
[1747701550803,70.46891939,168.38,168.3,18.64964886]
[1747701550986,50.48137256,168.38,168.3,18.64964886]
[1747701551181,70.46891939,168.38,168.3,18.64964886]
[1747701551395,19.98754683,168.37,168.3,18.64964886]
[1747701552097,5.9368321,168.44,168.38,18.64964886]
[1747701552485,20.77931368,168.44,168.38,18.64964886]
[1747701552705,19.98754683,168.46,168.38,18.64964886]
[1747701552896,19.98754683,168.45,168.38,18.64964886]
[1747701553078,50.45408676,168.47,168.38,18.64964886]
[1747701553281,19.98754683,168.45,168.38,18.64964886]
[1747701553578,19.98754683,168.44,168.38,18.64964886]
[1747701553900,19.98754683,168.45,168.38,18.64964886]
[1747701554200,50.45408676,168.47,168.38,18.64964886]
[1747701554393,19.98754683,168.44,168.38,18.64964886]
[1747701554594,20.78014604,168.43,168.38,18.64964886]
[1747701555285,40.76769287,168.43,168.38,18.64964886]
[1747701555608,19.98754683,168.42,168.35,43.82]
[1747701555814,20.78014604,168.43,168.37,0.28432314]
[1747701555986,20.78014604,168.43,168.36,18.64964886]
[1747701556302,20.78014604,168.43,168.37,0.28432314]
[1747701556907,14.84296146,168.43,168.37,0.28432314]
[1747701557106,14.84296146,168.43,168.36,18.64964886]
[1747701557304,34.83050829,168.43,168.36,18.64964886]
[1747701557790,14.84296146,168.43,168.39,18.64964886]
[1747701558607,14.84296146,168.43,168.33,23.42]
[1747701558608,19.98754683,168.4,168.29,35.74]
[1747701558895,19.98754683,168.38,168.33,18.64964886]
[1747701559096,20.78508224,168.39,168.32,26.0]
[1747701559303,19.98754683,168.38,168.33,18.64964886]
[1747701560386,47.06872907,168.39,168.33,18.64964886]
[1747701561296,19.98754683,168.38,168.33,18.64964886]
[1747701561702,19.98754683,168.37,168.33,18.64964886]
[1747701562005,56.77415688,168.39,168.33,18.64964886]
[1747701562180,19.98754683,168.37,168.33,18.64964886]
[1747701562678,20.79002079,168.35,168.29,17.82]
[1747701562880,20.79002079,168.35,168.3,18.64964886]
[1747701563292,20.79002079,168.35,168.31,0.28432314]
[1747701563609,5.94000594,168.35,168.31,0.28432314]
[1747701564919,40.77433835,168.38,168.31,0.28432314]
[1747701565688,20.78679152,168.38,168.31,0.28432314]
[1747701566001,20.78679152,168.38,168.34,18.64964886]
[1747701566201,5.93894761,168.38,168.35,0.28432314]
[1747701567009,14.84684521,168.39,168.35,0.28432314]
[1747701567900,14.84684521,168.39,168.34,18.64964886]
[1747701569009,20.78544013,168.39,168.34,18.64964886]
[1747701571082,5.93824228,168.4,168.36,18.64964886]
[1747701571494,5.93824228,168.4,168.36,44.64964886]
[1747701572705,20.78384798,168.4,168.36,44.64964886]
[1747701573099,5.9375371,168.42,168.37,0.28432314]
[1747701573298,5.9375371,168.42,168.4,18.64964886]
[1747701575293,20.78137987,168.42,168.38,44.64964886]
[1747701575494,40.7689267,168.42,168.38,44.64964886]
[1747701576707,40.7689267,168.42,168.38,18.64964886]
[1747701576915,20.78137987,168.42,168.37,18.64964886]
[1747701577292,40.7689267,168.42,168.37,18.64964886]
[1747701577515,19.98754683,168.41,168.37,18.64964886]
[1747701577706,19.98754683,168.4,168.3,18.933972]
[1747701577906,19.98754683,168.4,168.34,18.64964886]
[1747701578308,19.98754683,168.41,168.34,18.64964886]
[1747701578508,19.98754683,168.4,168.34,18.64964886]
[1747701578707,20.78508224,168.39,168.34,18.64964886]
[1747701578910,40.77262907,168.39,168.34,18.64964886]
[1747701579318,19.98754683,168.38,168.34,18.64964886]
[1747701579908,19.98754683,168.35,168.3,23.34]
[1747701580104,19.98754683,168.34,168.3,18.64964886]
[1747701580312,19.98754683,168.33,168.27,18.64964886]
[1747701580511,19.98754683,168.33,168.28,26.0]
[1747701581228,40.78127305,168.32,168.24,35.74]
[1747701581413,19.98754683,168.3,168.25,18.64964886]
[1747701581725,19.98754683,168.29,168.24,18.64964886]
[1747701581909,19.98754683,168.28,168.24,26.0]
[1747701582114,19.98754683,168.28,168.23,17.8]
[1747701582317,70.48659624,168.32,168.24,18.64964886]
[1747701582524,19.98754683,168.3,168.24,18.64964886]
[1747701582825,19.98754683,168.29,168.24,18.64964886]
[1747701583023,20.79866888,168.28,168.24,18.64964886]
[1747701583524,19.98754683,168.27,168.22,17.82]
[1747701583830,19.98754683,168.27,168.23,18.64964886]
[1747701585115,5.94318316,168.26,168.23,18.64964886]
[1747701585929,25.93072999,168.26,168.23,18.64964886]
[1747701586131,5.94318316,168.26,168.23,18.64964886]
[1747701586332,50.50204978,168.31,168.23,18.64964886]
[1747701586718,19.98754683,168.28,168.23,18.64964886]
[1747701587029,50.50204978,168.31,168.23,18.64964886]
[1747701587409,19.98754683,168.28,168.23,18.64964886]
[1747701587610,19.98754683,168.27,168.23,18.64964886]
[1747701588305,19.98754683,168.28,168.23,18.64964886]
[1747701588925,5.94282997,168.27,168.23,18.64964886]
[1747701589124,5.94282997,168.27,168.26,18.64964886]
[1747701590313,0.28432314,168.26,168.09,5.94902516]
[1747701590512,0.28432314,168.26,168.1,17.82]
[1747701590513,19.98754683,168.19,168.1,17.82]
[1747701590733,19.98754683,168.24,168.1,17.82]
[1747701590734,19.98754683,168.15,168.1,17.82]
[1747701590912,5.94742476,168.14,168.1,17.82]
[1747701591112,19.98754683,168.13,168.11,3.33409735]
[1747701591313,19.98754683,168.12,168.11,3.33409735]
[1747701593038,25.93567911,168.12,168.11,3.33409735]
[1747701593713,5.94813228,168.12,168.11,3.33409735]
[1747701594118,5.94671741,168.16,168.11,18.64964886]
[1747701594318,25.93426424,168.16,168.11,18.64964886]
[1747701594534,19.98754683,168.15,168.11,18.64964886]
[1747701594738,20.81351093,168.16,168.09,18.64964886]
[1747701595033,5.9477785,168.13,168.1,0.28432314]
[1747701595234,5.94707106,168.15,168.1,0.28432314]
[1747701596721,40.80229555,168.15,168.09,18.64964886]
[1747701597016,5.94707106,168.15,168.12,18.64964886]
[1747701597454,5.94707106,168.15,168.13,17.82]
[1747701598750,5.94707106,168.15,168.1,0.28432314]
[1747701598751,19.98754683,168.14,168.08,18.79181043]
[1747701599044,20.81227328,168.17,168.1,18.64964886]
[1747701599045,19.98754683,168.12,168.1,18.64964886]
[1747701600029,19.98754683,168.12,168.09,17.82]
[1747701600537,19.98754683,168.16,168.1,18.64964886]
[1747701600746,5.94636379,168.17,168.11,0.28432314]
[1747701601441,5.94636379,168.17,168.1,18.64964886]
[1747701601442,25.93391062,168.17,168.1,18.64964886]
[1747701601642,19.98754683,168.13,168.1,18.64964886]
[1747701601943,19.98754683,168.11,168.08,17.84]
[1747701602119,19.98754683,168.11,168.08,18.64964886]
[1747701602314,19.98754683,168.12,168.08,18.64964886]
[1747701602829,25.93603294,168.11,168.08,18.64964886]
[1747701603226,5.94822195,168.12,168.08,18.64964886]
[1747701604218,25.93576878,168.12,168.08,18.64964886]
[1747701604442,40.80609949,168.12,168.08,18.64964886]
[1747701604978,19.98754683,168.1,168.06,17.84]
[1747701605143,19.98754683,168.1,168.05,17.84]
[1747701605443,19.98754683,168.1,168.04,18.64964886]
[1747701605747,19.98754683,168.07,168.03,36.48964886]
[1747701605946,19.98754683,168.07,168.02,17.84]
[1747701606351,19.98754683,168.06,168.03,18.64964886]
[1747701606531,19.98754683,168.08,168.0,0.38135143]
[1747701606732,5.95167241,168.02,168.0,0.38135143]
[1747701607045,34.8628069,168.07,168.0,19.03100029]
[1747701607229,19.98754683,168.05,168.0,19.03100029]
[1747701607629,19.98754683,168.06,168.0,19.03100029]
[1747701607839,19.98754683,168.08,168.03,18.64964886]
[1747701608348,19.98754683,168.07,168.03,18.64964886]
[1747701608948,19.98754683,168.06,168.0,19.31532343]
[1747701609127,19.98754683,168.05,168.0,19.03100029]
[1747701609328,19.98754683,168.08,168.0,19.03100029]
[1747701609742,19.98754683,168.08,168.01,18.933972]
[1747701610255,19.98754683,168.06,168.0,19.03100029]
[1747701610456,19.98754683,168.07,168.0,18.64964886]
[1747701611129,5.95025586,168.06,168.0,18.64964886]
[1747701612057,25.93780269,168.06,168.0,18.64964886]
[1747701612745,5.9499828,168.07,168.01,0.28432314]
[1747701612927,31.94919388,168.09,168.01,0.28432314]
[1747701613134,31.94919388,168.09,168.03,18.933972]
[1747701613451,31.94919388,168.09,168.03,0.28432314]
[1747701614157,5.94919388,168.09,168.03,0.28432314]
[1747701615134,25.9363868,168.1,168.03,0.28432314]
[1747701615565,5.94883997,168.1,168.03,6.23558144]
[1747701616068,25.9363868,168.1,168.03,0.28432314]
[1747701616366,19.98754683,168.08,168.04,17.84]
[1747701616663,19.98754683,168.07,168.05,18.64964886]
[1747701616858,19.98754683,168.07,168.02,17.84]
[1747701617063,19.98754683,168.05,168.03,18.64964886]
[1747701617239,5.95096405,168.04,168.03,18.64964886]
[1747701617555,5.95096405,168.04,168.01,18.64964886]
[1747701617760,5.95096405,168.04,167.99,18.64964886]
[1747701617949,5.95096405,168.04,168.01,18.64964886]
[1747701618263,5.95096405,168.04,167.97,0.31897655]
[1747701618264,1.5842,168.03,167.99,18.64964886]
[1747701618449,19.98754683,168.01,167.98,18.64964886]
[1747701618768,19.98754683,168.02,167.98,18.64964886]
[1747701619058,19.98754683,168.01,167.98,18.64964886]
[1747701619436,5.95238095,168.0,167.97,0.31897655]
[1747701620436,25.93992778,168.0,167.97,0.31897655]
[1747701620658,5.95238095,168.0,167.97,0.31897655]
[1747701623162,25.93992778,168.0,167.97,0.31897655]
[1747701623456,5.95238095,168.0,167.97,0.31897655]
[1747701624264,5.95202666,168.01,167.97,0.31897655]
[1747701625143,19.98754683,168.0,167.97,0.31897655]
[1747701626362,40.81964015,168.01,167.97,0.31897655]
[1747701626866,19.98754683,168.0,167.97,0.31897655]
[1747701627252,19.98754683,167.99,167.97,0.31897655]
[1747701627567,19.98754683,168.0,167.97,0.31897655]